fUSD/lending_fUSD_20260108
["ID","MTS","AMOUNT","RATE_DAILY","PERIOD"]
[401056216,1767895832776,-178.79113088,0.00012279,2]
[401056217,1767895832786,-211.50230935,0.00012279,2]
[401056218,1767895832797,-293.48857706,0.00012279,2]
[401056219,1767895832809,-479.97879589,0.00012279,2]
[401056220,1767895832818,-78.78388339,0.00012279,2]
[401056221,1767895833251,-906.18579891,0.00012279,2]
[401056222,1767895833261,-106.90102801,0.00012279,2]
[401056223,1767895833272,-878.06865429,0.00012279,2]
[401056224,1767895833284,-984.9696823,0.00012279,2]
[401056225,1767895833297,-561.39136698,0.00012279,2]
[401056226,1767895833308,-423.57831532,0.00012279,2]
[401056227,1767895833318,-984.9696823,0.00012279,2]
[401056228,1767895833328,-984.9696823,0.00012279,2]
[401056229,1767895833337,-984.9696823,0.00012279,2]
[401056230,1767895833346,-984.9696823,0.00012279,2]
[401056231,1767895833356,-134.86279913,0.00012279,2]
[401056232,1767895833367,-850.10688317,0.00012279,2]
[401056233,1767895833377,-481.15636202,0.00012279,2]
[401056234,1767895833488,-503.81332028,0.00012279,2]
[401056235,1767895833498,-984.9696823,0.00012279,2]
[401056236,1767895833507,-984.9696823,0.00012279,2]
[401056237,1767895833517,-984.9696823,0.00012279,2]
[401056238,1767895833527,-945.3777637,0.00012279,2]
[401056239,1767895833536,-945.3777637,0.00012279,2]
[401056240,1767895833545,-945.3777637,0.00012279,2]
[401056241,1767895833555,-945.3777637,0.00012279,2]
[401056242,1767895833564,-391.46638802,0.00012279,2]
[401056243,1767895833576,-524.45373049,0.00012279,2]
[401056244,1767895833587,-29.45764519,0.00012279,2]
[401056245,1767895833597,-578.10733514,0.00012279,2]
[401056246,1767895833609,-367.27042856,0.00012279,2]
[401056247,1767895833619,-945.3777637,0.00012279,2]
[401056248,1767895833629,-945.3777637,0.00012279,2]
[401056249,1767895833638,-945.3777637,0.00012279,2]
[401056250,1767895833648,-945.3777637,0.00012279,2]
[401056251,1767895833658,-945.3777637,0.00012279,2]
[401056252,1767895833668,-945.3777637,0.00012279,2]
[401056253,1767895833678,-945.3777637,0.00012279,2]
[401056254,1767895833687,-945.3777637,0.00012279,2]
[401056255,1767895833697,-945.3777637,0.00012279,2]
[401056256,1767895833706,-945.3777637,0.00012279,2]
[401056257,1767895833715,-945.3777637,0.00012279,2]
[401056258,1767895833724,-200.90454334,0.00012279,2]
[401056259,1767895833733,-62472.6696274,0.0001228,2]
[401056260,1767895833746,-31799.16435006,0.0001228,2]
[401056261,1767895833770,-408.2574532,0.0001228,2]
[401056262,1767895833781,-323.3292545,0.0001228,2]
[401056263,1767895833792,-834.46466102,0.0001228,2]
[401056264,1767895833803,-1483.77886887,0.0001228,2]
[401056265,1767895833817,-2560.8081349,0.0001228,2]
[401056266,1767895838022,1476.79,0.00011816,2]
[401056328,1767895838662,-1300.63688379,0.00012196,2]
[401056330,1767895838674,-184.50374057,0.00012196,2]
[401056332,1767895838684,-252.24849318,0.0001228,2]
[401056334,1767895838695,-390.805764,0.0001228,2]
[401056337,1767895838714,-351.88118535,0.0001228,2]
[401056340,1767895838733,-1249.75727279,0.0001228,2]
[401056342,1767895838745,-251.80538329,0.0001228,2]
[401056467,1767895839883,-897621.02955144,0.0001228,2]
[401056469,1767895839892,-2623.6024,0.00012296,2]
[401056471,1767895839902,-236.5514,0.00012296,2]
[401056473,1767895839911,-1200.0,0.00012376,2]
[401056475,1767895839921,-9378.23,0.00012382,2]
[401056477,1767895839930,-1992.44,0.00012382,2]
[401056480,1767895839939,-370.84,0.00012382,2]
[401056482,1767895839949,-38035.46,0.00012382,2]
[401056484,1767895839957,-9999.99,0.00012382,2]
[401056486,1767895839967,-462.54,0.00012382,2]
[401056488,1767895839976,-33569.5495,0.00012396,2]
[401056490,1767895839989,-166.67,0.00012438,2]
[401056492,1767895839999,-500.0,0.00012488,2]
[401056494,1767895840009,-237.03265591,0.00012488,2]
[401056496,1767895840018,-505.93123413,0.00012488,2]
[401056498,1767895840027,-151.0,0.00012488,2]
[401056500,1767895840036,-151.0,0.00012488,2]
[401056502,1767895840045,-151.0,0.00012488,2]
[401056504,1767895840055,-151.0,0.00012488,2]
[401056506,1767895840064,-151.0,0.00012488,2]
[401056508,1767895840073,-151.0,0.00012488,2]
[401056510,1767895840083,-151.0,0.00012488,2]
[401056512,1767895840092,-151.0,0.00012488,2]
[401056514,1767895840103,-500.0,0.00012488,2]
[401056515,1767895840112,-151.0,0.00012488,2]
[401056516,1767895840121,-151.0,0.00012488,2]
[401056517,1767895840130,-200.0,0.00012488,2]
[401056544,1767895840483,-151.0,0.00012488,2]
[401056549,1767895840525,-157.35456451,0.00012488,2]
[401056551,1767895840535,-151.0,0.00012488,2]
[401056553,1767895840544,-385.39614839,0.00012609,2]
[401056555,1767895840553,-7804.45255641,0.00012619,2]
[401056557,1767895840563,-350.40168715,0.00012719,2]
[401056559,1767895840573,-193.80168797,0.00012919,2]
[401056561,1767895840582,-1500.0,0.00012972,2]
[401056563,1767895840591,-14136.36741063,0.00013074,2]
[401056565,1767895840600,-166.67,0.00013122,2]
[401056567,1767895840610,-200.0,0.00013135,2]
[401056569,1767895840623,-186.0,0.00013189,2]
[401056571,1767895840632,-7804.45255636,0.00013206,2]
[401056573,1767895840642,-35229.56,0.00013233,2]
[401056575,1767895840651,-956.65,0.00013303,2]
[401056577,1767895840661,-233.0,0.00013349,2]
[401056579,1767895840670,-255.0,0.0001337,2]
[401056581,1767895840679,-195.0,0.00013389,2]
[401056583,1767895840689,-300.0,0.00013389,2]
[401056585,1767895840698,-300.0,0.00013389,2]
[401056587,1767895840709,-250.0,0.00013389,2]
[401056589,1767895840719,-250.0,0.00013389,2]
[401056591,1767895840728,-195.0,0.00013389,2]
[401056593,1767895840738,-3240.0,0.00013425,2]
[401056595,1767895840747,-3486.96,0.0001344,2]
[401056597,1767895840757,-1680.0,0.00013505,2]
[401056599,1767895840767,-480.0,0.00013581,2]
[401056601,1767895840776,-350.40168713,0.00013583,2]
[401056603,1767895840785,-14136.36741063,0.00013677,2]
[401056605,1767895840794,-500.0,0.00013698,2]
[401056607,1767895840803,-500.0,0.00013698,2]
[401056609,1767895840813,-502.10445571,0.00013698,2]
[401056611,1767895840822,-500.0,0.00013698,2]
[401056613,1767895840831,-500.0,0.00013698,2]
[401056615,1767895840840,-500.0,0.00013698,2]
[401056617,1767895840849,-500.0,0.00013698,2]
[401056619,1767895840858,-500.0,0.00013698,2]
[401056621,1767895840867,-500.0,0.00013698,2]
[401056623,1767895840876,-500.0,0.00013698,2]
[401056625,1767895840886,-500.0,0.00013698,2]
[401056627,1767895840895,-500.0,0.00013698,2]
[401056629,1767895840905,-500.0,0.00013698,2]
[401056631,1767895840915,-500.0,0.00013698,2]
[401056633,1767895840924,-500.0,0.00013698,2]
[401056635,1767895840933,-931.94,0.00013698,2]
[401056637,1767895840942,-931.94,0.00013698,2]
[401056639,1767895840952,-931.94,0.00013698,2]
[401056641,1767895840961,-931.94,0.00013698,2]
[401056643,1767895840970,-500.0,0.00013698,2]
[401056645,1767895840979,-500.0,0.00013698,2]
[401056647,1767895840988,-500.0,0.00013698,2]
[401056649,1767895840998,-500.0,0.00013698,2]
[401056651,1767895841007,-500.0,0.00013698,2]
[401056653,1767895841016,-500.0,0.00013698,2]
[401056655,1767895841025,-500.0,0.00013698,2]
[401056657,1767895841035,-500.0,0.00013698,2]
[401056659,1767895841044,-500.0,0.00013698,2]
[401056661,1767895841053,-500.0,0.00013698,2]
[401056663,1767895841062,-500.0,0.00013698,2]
[401056665,1767895841071,-500.0,0.00013698,2]
[401056667,1767895841080,-500.0,0.00013698,2]
[401056669,1767895841090,-500.0,0.00013698,2]
[401056671,1767895841099,-500.0,0.00013698,2]
[401056673,1767895841108,-279.25,0.00013698,2]
[401056675,1767895841118,-500.0,0.00013698,2]
[401056677,1767895841127,-500.0,0.00013698,2]
[401056679,1767895841136,-500.0,0.00013698,2]
[401056681,1767895841145,-500.0,0.00013698,2]
[401056683,1767895841154,-500.0,0.00013698,2]
[401056685,1767895841163,-522.96995118,0.00013698,2]
[401056687,1767895841172,-414.08933578,0.00013698,2]
[401056689,1767895841181,-516.18277591,0.00013698,2]
[401056691,1767895841189,-500.0,0.00013698,2]
[401056693,1767895841198,-500.0,0.00013698,2]
[401056695,1767895841208,-500.0,0.00013698,2]
[401056697,1767895841218,-500.0,0.00013698,2]
[401056699,1767895841227,-500.0,0.00013698,2]
[401056701,1767895841236,-500.0,0.00013698,2]
[401056703,1767895841245,-500.0,0.00013698,2]
[401056705,1767895841254,-500.0,0.00013698,2]
[401056707,1767895841263,-600.85,0.00013698,2]
[401056709,1767895841272,-600.85,0.00013698,2]
[401056711,1767895841282,-600.85,0.00013698,2]
[401056714,1767895841296,-600.85,0.00013698,2]
[401056715,1767895841305,-196.64,0.00013699,2]
[401056718,1767895841315,-329.57,0.00013699,2]
[401056719,1767895841324,-7804.45255636,0.00013793,2]
[401056722,1767895841335,-166.67,0.00013806,2]
[401056724,1767895841344,-500.0,0.00013947,2]
[401056726,1767895841353,-500.0,0.00013947,2]
[401056728,1767895841365,-500.0,0.00013947,2]
[401056730,1767895841375,-500.0,0.00013947,2]
[401056732,1767895841384,-279.25,0.00013972,2]
[401056734,1767895841396,-150.0,0.00014136,2]
[401056736,1767895841405,-150.0,0.00014136,2]
[401056738,1767895841415,-500.0,0.00014136,2]
[401056740,1767895841424,-150.0,0.00014136,2]
[401056742,1767895841435,-1420.0,0.00014136,2]
[401056744,1767895841444,-500.0,0.00014136,2]
[401056746,1767895841454,-150.0,0.00014136,2]
[401056748,1767895841466,-150.0,0.00014136,2]
[401056750,1767895841476,-500.0,0.00014136,2]
[401056752,1767895841485,-500.0,0.00014136,2]
[401056754,1767895841494,-500.0,0.00014136,2]
[401056756,1767895841504,-150.0,0.00014136,2]
[401056758,1767895841513,-150.0,0.00014136,2]
[401056760,1767895841523,-150.0,0.00014136,2]
[401056762,1767895841532,-150.0,0.00014191,2]
[401056765,1767895841542,-150.0,0.00014191,2]
[401056767,1767895841551,-500.0,0.00014191,2]
[401056768,1767895841561,-150.0,0.00014191,2]
[401056770,1767895841570,-1420.0,0.00014191,2]
[401056772,1767895841580,-500.0,0.00014191,2]
[401056775,1767895841589,-150.0,0.00014191,2]
[401056777,1767895841599,-200.0,0.00014191,2]
[401056779,1767895841607,-500.0,0.00014191,2]
[401056780,1767895841616,-500.0,0.00014191,2]
[401056782,1767895841626,-500.0,0.00014191,2]
[401056784,1767895841635,-150.0,0.00014191,2]
[401056786,1767895841644,-150.0,0.00014246,2]
[401056788,1767895841654,-500.0,0.00014246,2]
[401056790,1767895841663,-150.0,0.00014246,2]
[401056792,1767895841673,-1420.0,0.00014246,2]
[401056794,1767895841682,-500.0,0.00014246,2]
[401056796,1767895841692,-154.16094674,0.00014246,2]
[401056798,1767895841702,-500.0,0.00014246,2]
[401056800,1767895841711,-500.0,0.00014246,2]
[401056802,1767895841721,-500.0,0.00014246,2]
[401056804,1767895841730,-150.0,0.00014246,2]
[401056806,1767895841740,-279.25,0.00014246,2]
[401056808,1767895841749,-14136.36741063,0.00014281,2]
[401056810,1767895841759,-150.0,0.000143,2]
[401056812,1767895841768,-500.0,0.000143,2]
[401056815,1767895841777,-150.0,0.000143,2]
[401056817,1767895841786,-1420.0,0.000143,2]
[401056819,1767895841795,-396.98457547,0.000143,2]
[401056820,1767895841804,-500.0,0.000143,2]
[401056822,1767895841814,-500.0,0.000143,2]
[401056825,1767895841823,-500.0,0.000143,2]
[401056827,1767895841832,-250.0,0.000143,2]
[401056828,1767895841841,-150.0,0.00014355,2]
[401056831,1767895841850,-500.0,0.00014355,2]
[401056833,1767895841860,-224.78328857,0.00014355,2]
[401056835,1767895841869,-1420.0,0.00014355,2]
[401056837,1767895841878,-500.0,0.00014355,2]
[401056839,1767895841887,-275.32921409,0.00014355,2]
[401056841,1767895841896,-500.0,0.00014355,2]
[401056843,1767895841905,-7804.45255636,0.00014379,2]
[401056845,1767895841915,-196.64,0.00014384,2]
[401056847,1767895841925,-250.0,0.0001441,2]
[401056849,1767895841934,-500.0,0.0001441,2]
[401056851,1767895841943,-1420.0,0.0001441,2]
[401056853,1767895841952,-500.0,0.0001441,2]
[401056855,1767895841962,-500.0,0.0001441,2]
[401056857,1767895841971,-350.40168713,0.00014446,2]
[401056859,1767895841980,-500.0,0.00014465,2]
[401056861,1767895841989,-1420.0,0.00014465,2]
[401056863,1767895841998,-189.97512683,0.00014465,2]
[401056865,1767895842007,-585.48487047,0.00014465,2]
[401056867,1767895842016,-166.67,0.00014491,2]
[401056869,1767895842025,-500.0,0.0001452,2]
[401056871,1767895842034,-1420.0,0.0001452,2]
[401056873,1767895842043,-279.25,0.0001452,2]
[401056875,1767895842052,-433.0,0.00014561,2]
[401056877,1767895842060,-500.0,0.00014574,2]
[401056879,1767895842069,-1420.0,0.00014574,2]
[401056881,1767895842077,-500.0,0.00014629,2]
[401056883,1767895842086,-1420.0,0.00014629,2]
[401056885,1767895842094,-500.0,0.00014684,2]
[401056887,1767895842103,-1420.0,0.00014684,2]
[401056889,1767895842112,-289.85184336,0.00014739,2]
[401056891,1767895842120,-1420.0,0.00014739,2]
[401056893,1767895842131,-500.0,0.00014762,2]
[401056895,1767895842140,-931.94,0.00014762,2]
[401056897,1767895842149,-500.0,0.00014762,2]
[401056899,1767895842163,-500.0,0.00014762,2]
[401056901,1767895842172,-500.0,0.00014762,2]
[401056903,1767895842181,-600.85,0.00014762,2]
[401056905,1767895842190,-500.0,0.00014763,2]
[401056907,1767895842199,-500.0,0.00014763,2]
[401056909,1767895842208,-500.0,0.00014763,2]
[401056911,1767895842217,-500.0,0.00014763,2]
[401056913,1767895842226,-500.0,0.00014763,2]
[401056915,1767895842235,-500.0,0.00014763,2]
[401056917,1767895842244,-500.0,0.00014763,2]
[401056919,1767895842253,-500.0,0.00014763,2]
[401056921,1767895842262,-500.0,0.00014763,2]
[401056923,1767895842271,-500.0,0.00014763,2]
[401056925,1767895842280,-500.0,0.00014763,2]
[401056927,1767895842293,-500.0,0.00014763,2]
[401056929,1767895842303,-500.0,0.00014763,2]
[401056931,1767895842312,-633.20600999,0.00014763,2]
[401056933,1767895842321,-1420.0,0.00014794,2]
[401056935,1767895842329,-279.2713644,0.00014794,2]
[401056938,1767895842339,-1420.0,0.00014848,2]
[401056939,1767895842348,-2351.0,0.00014856,2]
[401056941,1767895842357,-14136.36741063,0.00014884,2]
[401056943,1767895842366,-1420.0,0.00014903,2]
[401056945,1767895842375,-1420.0,0.00014958,2]
[401056947,1767895842383,-956.65,0.00014965,2]
[401056949,1767895842392,-7804.45255636,0.00014966,2]
[401056951,1767895842401,-1420.0,0.00015013,2]
[401056954,1767895842411,-167.40518339,0.00015048,2]
[401056955,1767895842421,-1420.0,0.00015068,2]
[401056958,1767895842431,-214.12448155,0.00015068,2]
[401056960,1767895842440,-196.64,0.00015068,2]
[401056962,1767895842455,-1420.0,0.00015122,2]
[401056964,1767895842465,-1420.0,0.00015177,2]
[401056966,1767895842474,-1420.0,0.00015232,2]
[401056968,1767895842484,-1420.0,0.00015287,2]
[401056969,1767895842492,-350.40168713,0.0001531,2]
[401056971,1767895842502,-1000.0,0.0001531,2]
[401056973,1767895842511,-505.81602002,0.0001531,2]
[401056975,1767895842520,-1000.0,0.0001531,2]
[401056977,1767895842529,-1000.0,0.0001531,2]
[401056979,1767895842538,-1000.0,0.0001531,2]
[401056981,1767895842547,-1000.0,0.0001531,2]
[401056983,1767895842556,-302.24106746,0.0001531,2]
[401056985,1767895842565,-379.40330386,0.0001531,2]
[401056987,1767895842574,-299.73155764,0.0001531,2]
[401056989,1767895842584,-1000.0,0.0001531,2]
[401056991,1767895842593,-1000.0,0.0001531,2]
[401056993,1767895842603,-1000.0,0.0001531,2]
[401056995,1767895842611,-1420.0,0.00015341,2]
[401056997,1767895842621,-1422.0,0.00015396,2]
[401056999,1767895842629,-14136.36741063,0.00015487,2]
[401057001,1767895842639,-7804.45255636,0.00015553,2]
[401057003,1767895842648,-2443.11794413,0.0001564,2]
[401057005,1767895842657,-196.64,0.00015753,2]
[401057007,1767895842666,-157.72323008,0.00015829,2]
[401057009,1767895842675,-298.6,0.00015834,2]
[401057011,1767895842684,-736.0,0.00015851,2]
[401057013,1767895842694,-376.30281883,0.00015858,2]
[401057015,1767895842703,-1500.0,0.00015858,2]
[401057017,1767895842711,-1487.99755872,0.00015858,2]
[401057019,1767895842721,-1500.0,0.00015858,2]
[401057021,1767895842731,-1500.0,0.00015858,2]
[401057023,1767895842741,-1500.0,0.00015858,2]
[401057025,1767895842750,-1500.0,0.00015858,2]
[401057028,1767895842759,-821.61952287,0.00015858,2]
[401057030,1767895842768,-1000.0,0.00015918,2]
[401057033,1767895842778,-12707.0,0.00016026,2]
[401057036,1767895842787,-250.0,0.00016084,2]
[401057039,1767895842796,-14136.36741063,0.0001609,2]
[401057042,1767895842805,-9999.99,0.00016116,2]
[401057046,1767895842814,-7804.45255636,0.0001614,2]
[401057049,1767895842823,-350.40168713,0.00016173,2]
[401057051,1767895842832,-500.0,0.00016334,2]
[401057053,1767895842843,-500.0,0.00016334,2]
[401057055,1767895842851,-446.86331983,0.00016334,2]
[401057057,1767895842860,-500.0,0.00016334,2]
[401057059,1767895842870,-3292.0,0.00016342,2]
[401057061,1767895842879,-157.72323008,0.00016357,2]
[401057063,1767895842888,-230.95716412,0.00016362,2]
[401057065,1767895842898,-233.19764693,0.00016362,2]
[401057067,1767895842907,-1899.23071139,0.00016362,2]
[401057069,1767895842915,-833.0,0.000164,2]
[401057071,1767895842925,-833.0,0.000164,2]
[401057073,1767895842934,-162.0,0.000164,2]
[401057075,1767895842943,-162.0,0.000164,2]
[401057077,1767895842952,-833.0,0.000164,2]
[401057079,1767895842961,-162.0,0.000164,2]
[401057081,1767895842970,-162.0,0.000164,2]
[401057083,1767895842979,-162.0,0.000164,2]
[401057085,1767895842988,-162.0,0.000164,2]
[401057087,1767895842998,-162.0,0.000164,2]
[401057089,1767895843007,-833.0,0.000164,2]
[401057091,1767895843016,-162.0,0.000164,2]
[401057093,1767895843026,-833.0,0.000164,2]
[401057095,1767895843035,-162.0,0.000164,2]
[401057097,1767895843044,-833.0,0.000164,2]
[401057099,1767895843053,-2020.5636209,0.00016406,2]
[401057101,1767895843062,-476.3156368,0.00016406,2]
[401057103,1767895843071,-2000.0,0.00016406,2]
[401057105,1767895843080,-2000.0,0.00016406,2]
[401057107,1767895843090,-2000.0,0.00016406,2]
[401057109,1767895843101,-409.51044567,0.00016437,2]
[401057111,1767895843110,-500.0,0.00016437,2]
[401057113,1767895843119,-500.0,0.00016437,2]
[401057115,1767895843128,-500.0,0.00016437,2]
[401057117,1767895843137,-500.0,0.00016437,2]
[401057119,1767895843145,-500.0,0.00016438,2]
[401057121,1767895843154,-500.0,0.00016438,2]
[401057123,1767895843163,-500.0,0.00016438,2]
[401057125,1767895843172,-500.0,0.00016438,2]
[401057127,1767895843181,-500.0,0.00016438,2]
[401057129,1767895843190,-500.0,0.00016438,2]
[401057131,1767895843199,-500.0,0.00016438,2]
[401057133,1767895843208,-500.0,0.00016438,2]
[401057135,1767895843217,-500.0,0.00016438,2]
[401057137,1767895843227,-506.58035685,0.00016438,2]
[401057139,1767895843236,-500.0,0.00016438,2]
[401057141,1767895843244,-500.0,0.00016438,2]
[401057143,1767895843255,-500.0,0.00016438,2]
[401057145,1767895843264,-500.0,0.00016438,2]
[401057147,1767895843273,-500.0,0.00016438,2]
[401057149,1767895843282,-500.0,0.00016438,2]
[401057151,1767895843296,-500.0,0.00016438,2]
[401057154,1767895843306,-500.0,0.00016438,2]
[401057156,1767895843315,-500.0,0.00016438,2]
[401057158,1767895843325,-500.0,0.00016438,2]
[401057160,1767895843334,-500.0,0.00016438,2]
[401057162,1767895843343,-500.0,0.00016438,2]
[401057164,1767895843353,-500.0,0.00016438,2]
[401057166,1767895843363,-500.0,0.00016438,2]
[401057168,1767895843372,-500.0,0.00016438,2]
[401057170,1767895843381,-500.0,0.00016438,2]
[401057172,1767895843391,-500.0,0.00016438,2]
[401057174,1767895843400,-500.0,0.00016438,2]
[401057176,1767895843409,-500.0,0.00016438,2]
[401057178,1767895843418,-500.0,0.00016438,2]
[401057180,1767895843428,-500.0,0.00016438,2]
[401057182,1767895843437,-500.0,0.00016438,2]
[401057184,1767895843446,-500.0,0.00016438,2]
[401057186,1767895843455,-3352.52585002,0.00016438,2]
[401057187,1767895843465,-3352.52585002,0.00016438,2]
[401057189,1767895843475,-3352.52585002,0.00016438,2]
[401057191,1767895843484,-3352.52585002,0.00016438,2]
[401057193,1767895843493,-3352.52585002,0.00016438,2]
[401057195,1767895843504,-3352.52585002,0.00016438,2]
[401057197,1767895843513,-3352.52585002,0.00016438,2]
[401057199,1767895843523,-3352.52585002,0.00016438,2]
[401057201,1767895843532,-3352.52585002,0.00016438,2]
[401057203,1767895843542,-3352.52585002,0.00016438,2]
[401057206,1767895843552,-3352.52585002,0.00016438,2]
[401057208,1767895843561,-3352.52585002,0.00016438,2]
[401057210,1767895843571,-3352.52585002,0.00016438,2]
[401057212,1767895843581,-3352.52585002,0.00016438,2]
[401057214,1767895843590,-3352.52585002,0.00016438,2]
[401057216,1767895843600,-3352.52585002,0.00016438,2]
[401057218,1767895843610,-3352.52585002,0.00016438,2]
[401057220,1767895843619,-3352.52585002,0.00016438,2]
[401057222,1767895843629,-3352.52585002,0.00016438,2]
[401057224,1767895843638,-3352.52585002,0.00016438,2]
[401057227,1767895843648,-3352.52585002,0.00016438,2]
[401057230,1767895843658,-3352.52585002,0.00016438,2]
[401057232,1767895843669,-3352.52585002,0.00016438,2]
[401057234,1767895843680,-3352.52585002,0.00016438,2]
[401057236,1767895843689,-3352.52585002,0.00016438,2]
[401057239,1767895843699,-3352.52585002,0.00016438,2]
[401057242,1767895843708,-3352.52585002,0.00016438,2]
[401057244,1767895843718,-3352.52585002,0.00016438,2]
[401057246,1767895843728,-3352.52585002,0.00016438,2]
[401057248,1767895843737,-3352.52585002,0.00016438,2]
[401057250,1767895843747,-3352.52585002,0.00016438,2]
[401057253,1767895843758,-3352.52585002,0.00016438,2]
[401057255,1767895843767,-3352.52585002,0.00016438,2]
[401057256,1767895843777,-3352.52585002,0.00016438,2]
[401057259,1767895843786,-3352.52585002,0.00016438,2]
[401057261,1767895843795,-3352.52585002,0.00016438,2]
[401057263,1767895843804,-3352.52585002,0.00016438,2]
[401057265,1767895843813,-3352.52585002,0.00016438,2]
[401057267,1767895843823,-3352.52585002,0.00016438,2]
[401057269,1767895843833,-3352.52585002,0.00016438,2]
[401057271,1767895843842,-3352.52585002,0.00016438,2]
[401057273,1767895843851,-3352.52585002,0.00016438,2]
[401057275,1767895843860,-3352.52585002,0.00016438,2]
[401057277,1767895843870,-3352.52585002,0.00016438,2]
[401057279,1767895843879,-3352.52585002,0.00016438,2]
[401057281,1767895843889,-3352.52585002,0.00016438,2]
[401057283,1767895843898,-3352.52585002,0.00016438,2]
[401057285,1767895843908,-3352.52585002,0.00016438,2]
[401057287,1767895843918,-3352.52585002,0.00016438,2]
[401057289,1767895843928,-3352.52585002,0.00016438,2]
[401057291,1767895843937,-3352.52585002,0.00016438,2]
[401057293,1767895843947,-3352.52584999,0.00016438,2]
[401057295,1767895843956,-3352.52584999,0.00016438,2]
[401057297,1767895843965,-3352.52584999,0.00016438,2]
[401057299,1767895843974,-3352.52584999,0.00016438,2]
[401057301,1767895843983,-3352.52584999,0.00016438,2]
[401057303,1767895843992,-500.0,0.00016438,2]
[401057305,1767895844002,-3352.52584998,0.00016438,2]
[401057307,1767895844012,-800.0,0.00016438,2]
[401057309,1767895844021,-196.64,0.00016438,2]
[401057311,1767895844029,-500.0,0.00016493,2]
[401057313,1767895844038,-3868.4,0.00016507,2]
[401057315,1767895844047,-578.20924308,0.00016514,2]
[401057317,1767895844056,-500.0,0.00016514,2]
[401057319,1767895844065,-250.0,0.00016514,2]
[401057321,1767895844075,-201.93286099,0.00016514,2]
[401057323,1767895844083,-500.0,0.00016514,2]
[401057325,1767895844093,-250.0,0.00016514,2]
[401057327,1767895844102,-500.0,0.00016514,2]
[401057328,1767895844112,-250.0,0.00016514,2]
[401057329,1767895844122,-500.0,0.00016514,2]
[401057330,1767895844131,-250.0,0.00016514,2]
[401057331,1767895844140,-500.0,0.00016514,2]
[401057332,1767895844150,-250.0,0.00016514,2]
[401057333,1767895844159,-394.3952879,0.00016514,2]
[401057334,1767895844169,-500.0,0.00016514,2]
[401057335,1767895844178,-1500.0,0.00016514,2]
[401057336,1767895844187,-500.0,0.00016514,2]
[401057337,1767895844196,-1500.0,0.00016514,2]
[401057338,1767895844205,-1500.0,0.00016514,2]
[401057339,1767895844214,-500.0,0.00016514,2]
[401057340,1767895844223,-620.0,0.00016514,2]
[401057341,1767895844232,-1500.0,0.00016514,2]
[401057342,1767895844241,-500.0,0.00016514,2]
[401057343,1767895844250,-1500.0,0.00016514,2]
[401057345,1767895844259,-500.0,0.00016514,2]
[401057347,1767895844269,-1500.0,0.00016514,2]
[401057349,1767895844278,-500.0,0.00016514,2]
[401057351,1767895844289,-1500.0,0.00016514,2]
[401057353,1767895844300,-500.0,0.00016514,2]
[401057355,1767895844309,-500.0,0.00016514,2]
[401057357,1767895844319,-1500.0,0.00016514,2]
[401057359,1767895844328,-500.0,0.00016514,2]
[401057361,1767895844339,-500.0,0.00016514,2]
[401057363,1767895844348,-500.0,0.00016514,2]
[401057365,1767895844359,-1500.0,0.00016514,2]
[401057367,1767895844370,-500.0,0.00016514,2]
[401057369,1767895844379,-500.0,0.00016514,2]
[401057371,1767895844389,-1500.0,0.00016514,2]
[401057373,1767895844399,-500.0,0.00016514,2]
[401057375,1767895844409,-9211.34798985,0.00016514,2]